Workbook

Sheet Main Sheet
A1: Washington's Crossing

Sheet American
F1: v1.5
B3: American | E3: Attacker Leader Rating | F3: Total Strength | G3: Fatigue | I3: Defender Strength | J3: Defender Fatigue | K3: Defender Outflank Hexes | L3: Attacker Outflank Hexes | Q3: Surprise Table Die Roll Modifier
E4: =MAX(IF(B7:B31=TRUE,D7:D31)) -> 8 | F4: =SUMPRODUCT((B7:B31=TRUE)*1,F7:F31) -> 2150 | G4: =MAX(IF(B7:B31=TRUE,G7:G31)) -> 2 | I4: 1240 | J4: 0 | K4: 0 | L4: 1 | Q4: =(I7*7)+(I8*3)+(I9*1)+(I10*0)+(I11*-1)+(I12*2)+(I15*1)+(I16*2)+(I17*-2)+(I18*-2)+(I19*-1)+(I20*-1)+(I21*-1)+(I22*-2) -> 9
C5: De-select all leaders
C6: Leaders | D6: Leader Rating | E6: Maximum | F6: Current Strength | G6: Current Fatigue | I6: Attacker | K6: Combat Ratio | N6: Worst Possible Result | Q6: Min Surprise Combat Mod | R6: Max Surprise Combat Mod | S6: Actual Surprise Mod
B7: TRUE | C7: Washington | D7: 8 | E7: 140 | F7: 130 | G7: 2 | I7: TRUE | J7: =IF(AND($I$7,$I$8),"!","") ->  | K7: =IFERROR(VLOOKUP(ROUND($F$4/$I$4,6),CombatRatios,2,TRUE),"") -> 3:2 | N7: =IFERROR(VLOOKUP($Q$17,CRT,$E$4,FALSE)," 0/ 0") -> 20/ 20 | O7: =$Q$20 -> -0.05 | Q7: =VLOOKUP($Q$4,SurpriseTable,2,TRUE) -> 2 | R7: =VLOOKUP($Q$4+9,SurpriseTable,2,TRUE) -> 6 | S7: =VLOOKUP($Q$4+$L$9,SurpriseTable,2,TRUE) -> 2
B8: FALSE | C8: Greene | D8: 6 | E8: 0 | F8: 0 | G8: 0 | I8: FALSE | J8: =IF(AND($I$7,$I$8),"!","") ->  | N8: Attacker Result: | O8: =MAX(0,ROUND($I$4*((INT(MID(N7,FIND("/",N7)-3,3))/100)+O7),-1)) -> 190
B9: FALSE | C9: Sullivan | D9: 5 | E9: 0 | F9: 0 | G9: 0 | I9: FALSE | J9: =IF(OR(AND($I$9,$I$10),AND($I$10,$I$11),AND($I$9,$I$11)),"!","") ->  | K9: Surprise Table Die Roll | L9: 0 | N9: Defender Result: | O9: =ROUND($I$4*INT(MID(N7,FIND("/",N7)+1,3))/100,-1) -> 250 | Q9: Min Surpise Attacker % | R9: Max Surpise Attacker % | S9: Actual Surprise Attacker % | V9: Instructions
B10: FALSE | C10: Cadwalader (M) | D10: 5 | E10: 1380 | F10: 380 | G10: 2 | I10: TRUE | K10: Combat Table Die Roll | L10: 0 | Q10: =VLOOKUP($Q$4,SurpriseTable,3,TRUE) -> -0.05 | R10: =VLOOKUP($Q$4+9,SurpriseTable,3,TRUE) -> -0.15 | S10: =VLOOKUP($Q$4+$L$9,SurpriseTable,3,TRUE) -> -0.05 | V10: 1. Check off the American Leaders to be included in the attack.
B11: FALSE | C11: Dickinson (M) * | D11: 3 | E11: 400 | F11: 400 | G11: 0 | I11: FALSE | K11: Final Combat Results | N11: Best Possible Result | V11: 2. Check off battle modifiers (e.g. "Normal Attack", "Entrenched", "Rain", etc.)
B12: FALSE | C12: Ewing (M) | D12: 4 | E12: 720 | F12: 700 | G12: 0 | I12: TRUE | J12: =IF(AND($I$12,$I$13),"!","") ->  | K12: =IFERROR(VLOOKUP($T$17+$L$10,CRT,$E$4,FALSE)," 0 / 0 ") -> 20/ 20 | L12: =$T$20 -> -0.05 | M12: =IFERROR(FIND("R",$K$12),0)+IFERROR(FIND("?",$K$12),0)+IFERROR(FIND("!",$K$12),0) -> 0 | N12: =IFERROR(VLOOKUP($R$17+9,CRT,$E$4,FALSE), " 0/ 0") -> 5/ 90 ! | O12: =$R$20 -> -0.15 | Q12: Combat Ratio | R12: Combat Ratio Modifier | S12: Attacker Combat DRM | V12: 3. Enter defender strength, defender fatigue, and outflank hexes.
B13: TRUE | C13: Fermoy | D13: 2 | E13: 620 | F13: 400 | G13: 2 | I13: FALSE | J13: =IF(AND($I$12,$I$13),"!","") ->  | K13: American Losses: | L13: =MAX(0,ROUND($I$4*((INT(MID(K12,FIND("/",K12)-3,3))/100)+L12),-1)) -> 190 | M13: =FIND("/",$K$12) -> 4 | N13: Attacker Result: | O13: =MAX(0,ROUND($I$4*((INT(MID(N12,FIND("/",N12)-3,3))/100)+O12),-1)) -> 0 | Q13: =IFERROR(VLOOKUP(ROUND($F$4/$I$4,6),CombatRatios,2,TRUE),"") -> 3:2 | R13: =IFERROR(VLOOKUP(ROUND($F$4/$I$4,6),CombatRatios,3,TRUE),"") -> 1 | S13: =(I22*-1)+(I17*-1)+(I12*-1)+(I13*-2)+1+(I16*2)+(I15*1)+(I18*-2)+IF(G4=3,-1,0)+IF(G4=4,-2,0)+IF(J4>3,J4-3,0)+(I11*-1) -> 0 | V13: 4. Enter the actual "Surprise Table Die Roll" and "Combat Table Die Roll".
B14: FALSE | C14: Glover * | D14: 5 | E14: 850 | F14: 160 | G14: 2 | I14: Defender | K14: British Losses: | L14: =ROUND($I$4*INT(MID(K12,FIND("/",K12)+1,3))/100,-1)+$L$21 -> 250 | M14: =INT(MID(K12,FIND("/",K12)-3,3))+($L$12*100) -> 15 | N14: Defender Result: | O14: =ROUND($I$4*INT(MID(N12,FIND("/",N12)+1,3))/100,-1) -> 1120 | V14: 5. Read combat results (Retreat, Loss %, Troop Losses, Winner, Victory Points).
B15: FALSE | C15: Griffin (M) | D15: 3 | E15: 450 | F15: 450 | G15: 0 | I15: FALSE | J15: =IF(AND($I$15,$I$16),"!","") ->  | K15: Winner: | L15: =IF($M$12=0,"None",IF($M$12>$M$13,"American","British")) -> None | M15: =INT(MID(K12,FIND("/",K12)+1,3)) -> 20
B16: FALSE | C16: Hitchcock | D16: 4 | E16: 710 | F16: 710 | G16: 2 | I16: FALSE | J16: =IF(AND($I$15,$I$16),"!","") ->  | K16: Victory Points: | L16: =VLOOKUP(M16,VPTable,MATCH(M17,INDEX(VPTable,1,),1),TRUE) -> 0 | M16: =IF($L$15="American",IF(M14=0,0.00001,IFERROR(M14/M15,0)),IF($L$15="British",IF(M15=0,0.00001,IFERROR(M15/M14,0)),0)) -> 0 | N16: Likely Result | Q16: Worst Final DRM | R16: Best Final DRM | S16: Likely Final DRM | T16: Actual Final DRM | V16: Keep the "Current Strength" and "Current Fatigue" values updated, and
B17: TRUE | C17: Lord Stirling * | D17: 5 | E17: 570 | F17: 500 | G17: 1 | I17: FALSE | M17: =IF(L15="American",L14,IF(L15="British",L13,0)) -> 0 | N17: =IFERROR(VLOOKUP(INT(($S$17+$S$17+9)/2),CRT,$E$4,FALSE), " 0 / 0 ") -> 20/ 40 ? | O17: =$S$20 -> -0.1 | Q17: =IFERROR($Q$7+$R$13+$S$13+MAX(0,$L$4-2)-MAX(0,$K$4-2),"") -> 3 | R17: =IFERROR($R$7+$R$13+$S$13+MAX(0,$L$4-2)-MAX(0,$K$4-2),"") -> 7 | S17: =VLOOKUP(INT(($Q$4+($Q$4+9))/2),SurpriseTable,2,TRUE) -> 5 | T17: =IFERROR($S$7+$R$13+$S$13+MAX(0,$L$4-2)-MAX(0,$K$4-2),"") -> 3 | V17: there's no need to use the game's paper Leader Charts!
B18: FALSE | C18: McDougall | D18: 5 | E18: 750 | F18: 0 | G18: 0 | I18: FALSE | L18: =IFERROR(IF(AND($I$4<=100,LEFT($K$7,FIND(":",$K$7,1)-1)>=7),"Subject to addt'l", ""),"") ->  | N18: Attacker Result: | O18: =MAX(0,ROUND($I$4*((INT(MID(N17,FIND("/",N17)-3,3))/100)+O17),-1)) -> 120 | V18: Note: The mobile version of this program is under construction, and will
B19: TRUE | C19: Mercer | D19: 5 | E19: 720 | F19: 720 | G19: 0 | L19: =IFERROR(IF(AND($I$4<=100,LEFT($K$7,FIND(":",$K$7,1)-1)>=7),"30 troop losses", ""),"") ->  | N19: Defender Result: | O19: =ROUND($I$4*INT(MID(N17,FIND("/",N17)+1,3))/100,-1) -> 500 | Q19: Worst Attacker % | R19: Best Attacker % | S19: Likely Attacker % | T19: Actual Attacker % | V19: allow you to run it on your phone!
B20: FALSE | C20: Mifflin (M) | D20: 5 | E20: 1800 | F20: 0 | G20: 0 | L20: =IFERROR(IF(AND($I$4<=100,LEFT($K$7,FIND(":",$K$7,1)-1)>=7),"(see rule 17.1, item 6)", ""),"") ->  | Q20: =$Q$10 -> -0.05 | R20: =$R$10 -> -0.15 | S20: =VLOOKUP(INT(($Q$4+($Q$4+9))/2),SurpriseTable,3,TRUE) -> -0.1 | T20: =$S$10 -> -0.05
B21: FALSE | C21: Putnam (M) | D21: 2 | E21: 1000 | F21: 700 | G21: 0 | I21: FALSE | J21: =IF(AND($I$21,$I$22),"!","") ->  | L21: =IFERROR(IF(AND($I$4<=100,LEFT($K$7,FIND(":",$K$7,1)-1)>=7),30,0),0) -> 0
B22: FALSE | C22: Sargent * | D22: 4 | E22: 710 | F22: 500 | G22: 5 | I22: FALSE | J22: =IF(AND($I$21,$I$22),"!","") -> 
B23: FALSE | C23: St. Clair ** | D23: 5 | E23: 420 ** | F23: 380 | G23: 5 | I23: *** (on or before Jan. 3)
B24: TRUE | C24: Stephen | D24: 4 | E24: 460 | F24: 400 | G24: 2
B25: FALSE | C25: Detachment 1 | D25: 3 | E25: 500 | F25: 0 | G25: 0
B26: FALSE | C26: Detachment 2 | D26: 3 | E26: 500 | F26: 500 | G26: 0
B27: FALSE | C27: Detachment 3 | D27: 3 | E27: 500 | F27: 500 | G27: 0
B28: FALSE | C28: Detachment 4 (M) | D28: 3 | E28: 500 | F28: 300 | G28: 0
B29: FALSE | C29: Detachment 5 (M) | D29: 3 | E29: 500 | F29: 1000 | G29: 2
B30: FALSE | C30: Detachment 6 (M) | D30: 3 | E30: 500 | F30: 0 | G30: 0
B31: FALSE | C31: Detachment 7 (M) | D31: 3 | E31: 500 | F31: 0 | G31: 0
B32: (M) = Militia
B33: * End of enlistments on January 1st 12AM turn
B34: ** St. Clari's Command Limit increases to 1,400 starting on January 1st, 12AM turn

Sheet British
B3: British | E3: Attacker Leader Rating | F3: Total Strength | G3: Fatigue | I3: Defender Strength | J3: Defender Fatigue | K3: Defender Outflank Hexes | L3: Attacker Outflank Hexes | Q3: Surprise Table Die Roll Modifier
E4: =MAX(IF(B7:B29=TRUE,D7:D29)) -> 3 | F4: =SUMPRODUCT((B7:B25=TRUE)*1,F7:F25) -> 1200 | G4: =MAX(IF(B7:B25=TRUE,G7:G25)) -> 0 | I4: 600 | J4: 0 | K4: 0 | L4: 1 | Q4: =(I7*2)+(I8*-1)+(I9*-2)+(I13*1)+(I14*2)+(I15*-2)+(I16*-2)+(I17*-1)+(I18*-1)+(I19*-1)+(I20*-2) -> 0
C5: De-select all leaders
C6: Leaders | D6: Leader Rating | E6: Maximum | F6: Current Strength | G6: Current Fatigue | I6: Attacker | K6: Combat Ratio | N6: Worst Possible Result | Q6: Min Surprise Combat Mod | R6: Max Surprise Combat Mod | S6: Actual Surprise Mod
B7: FALSE | C7: Cornwallis | D7: 6 | E7: 0 | F7: 0 | G7: 0 | I7: FALSE | J7: =IF(OR(AND($I$7,$I$8),AND($I$8,$I$9),AND($I$7,$I$9)),"!","") ->  | K7: =IFERROR(VLOOKUP(ROUND($F$4/$I$4,6),CombatRatios,2,TRUE),"") -> 2:1 | N7: =IFERROR(VLOOKUP($Q$17,CRT,$E$4,FALSE),"' 0/ 0") -> '? 15/ 5 | O7: =$Q$20 -> 0.05 | Q7: =VLOOKUP($Q$4,SurpriseTable,2,TRUE) -> -2 | R7: =VLOOKUP($Q$4+9,SurpriseTable,2,TRUE) -> 2 | S7: =VLOOKUP($Q$4+$L$9,SurpriseTable,2,TRUE) -> 0
B8: TRUE | C8: Grant | D8: 2 | E8: 2000 | F8: 0 | G8: 0 | I8: FALSE | J8: =IF(OR(AND($I$7,$I$8),AND($I$8,$I$9),AND($I$7,$I$9)),"!","") ->  | N8: Attacker Result: | O8: =MAX(0,ROUND($I$4*((INT(MID(N7,FIND("/",N7)-3,3))/100)+O7),-1)) -> 120
B9: TRUE | C9: Grenadiers | D9: 3 | E9: 1200 | F9: 1200 | G9: 0 | I9: FALSE | J9: =IF(OR(AND($I$7,$I$8),AND($I$8,$I$9),AND($I$7,$I$9)),"!","") ->  | K9: Surprise Table Die Roll | L9: 5 | N9: Defender Result: | O9: =ROUND($I$4*INT(MID(N7,FIND("/",N7)+1,3))/100,-1) -> 30 | Q9: Min Surpise Attacker % | R9: Max Surpise Attacker % | S9: Actual Surprise Attacker % | V9: Instructions
B10: FALSE | C10: Leslie | D10: 4 | E10: 2100 | F10: 2100 | G10: 0 | I10: FALSE | J10: =IF(AND($I$10,$I$11),"!","") ->  | K10: Combat Table Die Roll | L10: 3 | Q10: =VLOOKUP($Q$4,SurpriseTable,3,TRUE) -> 0.05 | R10: =VLOOKUP($Q$4+9,SurpriseTable,3,TRUE) -> -0.05 | S10: =VLOOKUP($Q$4+$L$9,SurpriseTable,3,TRUE) -> 0 | V10: 1. Check off the British Leaders to be included in the attack.
B11: FALSE | C11: Light Infantry | D11: 3 | E11: 800 | F11: 800 | G11: 0 | I11: FALSE | J11: =IF(AND($I$10,$I$11),"!","") ->  | K11: Final Combat Results | N11: Best Possible Result | V11: 2. Check off battle modifiers (e.g. "Normal Attack", "Entrenched", "Rain", etc.)
B12: FALSE | C12: Mathew | D12: 3 | E12: 1000 | F12: 1000 | G12: 0 | I12: Defender | K12: =IFERROR(VLOOKUP($T$17+$L$10,CRT,$E$4,FALSE)," 0 / 0 ") -> 15/ 15 | L12: =$T$20 -> 0 | M12: =IFERROR(FIND("R",$K$12),0)+IFERROR(FIND("?",$K$12),0)+IFERROR(FIND("!",$K$12),0) -> 0 | N12: =IFERROR(VLOOKUP($R$17+9,CRT,$E$4,FALSE),"' 0/ 0") -> 20/ 40 ? | O12: =$R$20 -> -0.05 | Q12: Combat Ratio | R12: Combat Ratio Modifier | S12: Attacker Combat DRM | V12: 3. Enter defender strength, defender fatigue, and outflank hexes.
B13: FALSE | C13: Mawhood | D13: 5 | E13: 1400 | F13: 1400 | G13: 0 | I13: FALSE | J13: =IF(AND($I$13,$I$14),"!","") ->  | K13: British Losses: | L13: =MAX(0,ROUND($I$4*((INT(MID(K12,FIND("/",K12)-3,3))/100)+L12),-1)) -> 90 | M13: =FIND("/",$K$12) -> 4 | N13: Attacker Result: | O13: =MAX(0,ROUND($I$4*((INT(MID(N12,FIND("/",N12)-3,3))/100)+O12),-1)) -> 90 | Q13: =IFERROR(VLOOKUP(ROUND($F$4/$I$4,6),CombatRatios,2,TRUE),"") -> 2:1 | R13: =IFERROR(VLOOKUP(ROUND($F$4/$I$4,6),CombatRatios,3,TRUE),"") -> 2 | S13: =(I20*-1)+(I15*-1)+(I10*-1)+(I11*-2)+(I14*2)+(I13*1)+(I16*-2)+IF(F4=3,-1,0)+IF(F4=4,-2,0)+IF(J4>3,J4-3,0)+(I9*-1) -> 0 | V13: 4. Enter the actual "Surprise Table Die Roll" and "Combat Table Die Roll".
B14: FALSE | C14: Monckton | D14: 4 | E14: 1800 | F14: 0 | G14: 0 | I14: FALSE | J14: =IF(AND($I$13,$I$14),"!","") ->  | K14: American Losses: | L14: =ROUND($I$4*INT(MID(K12,FIND("/",K12)+1,3))/100,-1)+$L$21 -> 90 | M14: =INT(MID(K12,FIND("/",K12)-3,3))+($L$12*100) -> 15 | N14: Defender Result: | O14: =ROUND($I$4*INT(MID(N12,FIND("/",N12)+1,3))/100,-1) -> 240 | V14: 5. Read combat results (Retreat, Loss %, Troop Losses, Winner, Victory Points).
B15: FALSE | C15: Stirling | D15: 3 | E15: 500 | F15: 500 | G15: 1 | I15: FALSE | K15: Winner: | L15: =IF($M$12=0,"None",IF($M$12>$M$13,"British","American")) -> None | M15: =INT(MID(K12,FIND("/",K12)+1,3)) -> 15
B16: FALSE | C16: Vanguard | D16: 5 | E16: 300 | F16: 0 | G16: 0 | I16: FALSE | K16: Victory Points: | L16: =VLOOKUP(M16,VPTable,MATCH(M17,INDEX(VPTable,1,),1),TRUE) -> 0 | M16: =IF($L$15="British",IF(M14=0,0.00001,IFERROR(M14/M15,0)),IF($L$15="American",IF(M15=0,0.00001,IFERROR(M15/M14,0)),0)) -> 0 | N16: Likely Result | Q16: Worst Final DRM | R16: Best Final DRM | S16: Likely Final DRM | T16: Actual Final DRM | V16: Keep the "Current Strength" and "Current Fatigue" values updated, and
B17: FALSE | C17: Vaughan | D17: 3 | E17: 1200 | F17: 0 | G17: 0 | I17: FALSE | M17: =IF(L15="American",L13,IF(L15="British",L14,0)) -> 0 | N17: =IFERROR(VLOOKUP(INT(($S$17+$S$17+9)/2),CRT,$E$4,FALSE),"' 0/ 0") -> 'R 10/ 10 | O17: =$S$20 -> 0 | Q17: =IFERROR($Q$7+$R$13+$S$13+MAX(0,$L$4-2)-MAX(0,$K$4-2),"") -> 0 | R17: =IFERROR($R$7+$R$13+$S$13+MAX(0,$L$4-2)-MAX(0,$K$4-2),"") -> 4 | S17: =VLOOKUP(INT(($Q$4+($Q$4+9))/2),SurpriseTable,2,TRUE) -> 0 | T17: =IFERROR($S$7+$R$13+$S$13+MAX(0,$L$4-2)-MAX(0,$K$4-2),"") -> 2 | V17: there's no need to use the game's paper Leader Charts!
B18: FALSE | C18: Webster | D18: 3 | E18: 1200 | F18: 600 | G18: 0 | L18: =IFERROR(IF(AND($I$4<=100,LEFT($K$7,FIND(":",$K$7,1)-1)>=7),"Subject to addt'l", ""),"") ->  | N18: Attacker Result: | O18: =MAX(0,ROUND($I$4*((INT(MID(N17,FIND("/",N17)-3,3))/100)+O17),-1)) -> 60 | V18: Note: The mobile version of this program is under construction, and will
B19: FALSE | C19: Detachment 1 | D19: 3 | E19: 1200 | F19: 0 | G19: 0 | I19: FALSE | J19: =IF(AND($I$19,$I$20),"!","") ->  | L19: =IFERROR(IF(AND($I$4<=100,LEFT($K$7,FIND(":",$K$7,1)-1)>=7),"30 troop losses", ""),"") ->  | N19: Defender Result: | O19: =ROUND($I$4*INT(MID(N17,FIND("/",N17)+1,3))/100,-1) -> 60 | Q19: Worst Attacker % | R19: Best Attacker % | S19: Likely Attacker % | T19: Actual Attacker % | V19: allow you to run it on your phone!
B20: FALSE | C20: Detachment 2 | D20: 3 | E20: 1200 | F20: 0 | G20: 0 | I20: FALSE | J20: =IF(AND($I$19,$I$20),"!","") ->  | L20: =IFERROR(IF(AND($I$4<=100,LEFT($K$7,FIND(":",$K$7,1)-1)>=7),"(see rule 17.1, item 6)", ""),"") ->  | Q20: =$Q$10 -> 0.05 | R20: =$R$10 -> -0.05 | S20: =VLOOKUP(INT(($Q$4+($Q$4+9))/2),SurpriseTable,3,TRUE) -> 0 | T20: =$S$10 -> 0
B21: FALSE | C21: Detachment 3 | D21: 3 | E21: 1200 | F21: 0 | G21: 0 | I21: *** (on or before Jan. 3) | L21: =IFERROR(IF(AND($I$4<=100,LEFT($K$7,FIND(":",$K$7,1)-1)>=7),30,0),0) -> 0
B22: FALSE | C22: vonDonop (H) | D22: 5 | E22: 2200 | F22: 950 | G22: 1
B23: FALSE | C23: Rall (H) | D23: 3 | E23: 1400 | F23: 1240 | G23: 2
B24: FALSE | C24: Detachment 1 (H) | D24: 3 | E24: 1200 | F24: 150 | G24: 1
B25: FALSE | C25: Detachment 2 (H) | D25: 3 | E25: 1200 | F25: 450 | G25: 0
B26: (H) = Hessian

Sheet Data (hidden)
B1: Combat Odds | F1: Surprise Table | J1: Surprise Table | S1: Victory Point Table
B2: Ratio | C2: Odds | D2: Modifier | F2: Die Roll | G2: CRT Mod | H2: Attacker % | K2: Attacker Leader Rating | T2: Loser Losses
B3: =ROUND(1/9,6) -> 0.111111 | C3: 1:9 | D3: -9 | F3: -4 | G3: -6 | H3: 0.15 | J3: Die Roll | K3: 2 | L3: 3 | M3: 4 | N3: 5 | O3: 6 | P3: 7 | Q3: 8 | S3: Winner to Loser Ratio | T3: 0 | U3: 100 | V3: 200 | W3: 400 | X3: 600
B4: =ROUND(1/8,6) -> 0.125 | C4: 1:8 | D4: -8 | F4: -3 | G4: -5 | H4: 0.1 | J4: -7 | K4: ! 25/ 0 | L4: '! 25/ 0 | M4: '! 25/ 0 | N4: '! 20/ 0 | O4: '! 20/ 0 | P4: '! 15/ 0 | Q4: '! 15/ 0 | S4: 0 | T4: 0 | U4: 0 | V4: 0 | W4: 0 | X4: 0
B5: =ROUND(1/7,6) -> 0.142857 | C5: 1:7 | D5: -7 | F5: -2 | G5: -4 | H5: 0.1 | J5: -6 | K5: '! 20/ 0 | L5: '! 20/ 0 | M5: '! 20/ 0 | N5: '! 15/ 0 | O5: '! 15/ 0 | P5: '! 10/ 0 | Q5: '! 10/ 0 | S5: 1e-06 | T5: 0 | U5: 1 | V5: 2 | W5: 4 | X5: 6
B6: =ROUND(1/6,6) -> 0.166667 | C6: 1:6 | D6: -6 | F6: -1 | G6: -3 | H6: 0.1 | J6: -5 | K6: '! 15/ 0 | L6: '! 15/ 0 | M6: '! 15/ 0 | N6: '! 15/ 0 | O6: '! 15/ 0 | P6: '! 15/5 | Q6: '! 15/5 | S6: =1/3+0.000001 -> 0.3333343333 | T6: 0 | U6: 1 | V6: 2 | W6: 4 | X6: 6
B7: =ROUND(1/5,6) -> 0.2 | C7: 1:5 | D7: -5 | F7: 0 | G7: -2 | H7: 0.05 | J7: -4 | K7: '! 15/ 0 | L7: '! 15/ 0 | M7: '! 15/ 0 | N7: '! 10/ 0 | O7: '! 10/ 0 | P7: '? 15/5 | Q7: '? 15/5 | S7: =1/2+0.000001 -> 0.500001 | T7: 0 | U7: 1 | V7: 2 | W7: 4 | X7: 4
B8: =ROUND(1/4,6) -> 0.25 | C8: 1:4 | D8: -4 | F8: 1 | G8: -2 | H8: 0.05 | J8: -3 | K8: '! 10/ 0 | L8: '! 10/ 0 | M8: '! 10/ 0 | N8: '! 10/ 0 | O8: '! 10/ 0 | P8: '? 10/5 | Q8: '? 10/5 | S8: =2/3+0.000001 -> 0.6666676667 | T8: 0 | U8: 1 | V8: 1 | W8: 1 | X8: 1
B9: =ROUND(1/3,6) -> 0.333333 | C9: 1:3 | D9: -3 | F9: 2 | G9: -1 | H9: 0.05 | J9: -2 | K9: '? 10/ 0 | L9: '? 10/ 0 | M9: '? 10/ 0 | N9: '? 15/5 | O9: '? 15/5 | P9: '? 20/ 10 | Q9: '? 20/ 10 | S9: 1 | T9: 0 | U9: 0 | V9: 0 | W9: 0 | X9: 0
B10: =ROUND(1/2,6) -> 0.5 | C10: 1:2 | D10: -2 | F10: 3 | G10: -1 | H10: 0 | J10: -1 | K10: '? 15/ 5 | L10: '? 15/ 5 | M10: '? 15/ 5 | N10: '? 15/ 5 | O10: '? 15/ 5 | P10: 'R 15/ 10 | Q10: 'R 15/ 10
B11: =ROUND(2/3,6) -> 0.666667 | C11: 2:3 | D11: -1 | F11: 4 | G11: 0 | H11: 0 | J11: 0 | K11: '? 15/ 5 | L11: '? 15/ 5 | M11: '? 15/ 5 | N11: 'R 10/ 5 | O11: 'R 10/ 5 | P11: 'R 10/ 10 | Q11: 'R 10/ 10 | S11: Winner % | T11: 5 | V11: =IF(T11=0,0.00001,IFERROR(T11/T12,0)) -> 0.1666666667
B12: 1 | C12: 1:1 | D12: 0 | F12: 5 | G12: 0 | H12: 0 | J12: 1 | K12: 'R 10/ 5 | L12: 'R 10/ 5 | M12: 'R 10/ 5 | N12: 'R 10/ 5 | O12: 'R 10/ 5 | P12: 'R 20/ 15 | Q12: 'R 20/ 15 | S12: Loser % | T12: 30
B13: 1.5 | C13: 3:2 | D13: 1 | F13: 6 | G13: 1 | H13: 0 | J13: 2 | K13: 'R 10/ 5 | L13: 'R 10/ 5 | M13: 'R 10/ 5 | N13: 'R 15/ 10 | O13: 'R 15/ 10 | P13: 'R 15/ 15 | Q13: 'R 15/ 15 | S13: Loser Losses | T13: 100
B14: 2 | C14: 2:1 | D14: 2 | F14: 7 | G14: 1 | H14: 0 | J14: 3 | K14: 'R 15/ 10 | L14: 'R 15/ 10 | M14: 'R 15/ 10 | N14: 'R 10/ 10 | O14: 'R 10/ 10 | P14: 20/ 20 | Q14: 20/ 20
B15: 3 | C15: 3:1 | D15: 3 | F15: 8 | G15: 2 | H15: -0.05 | J15: 4 | K15: 'R 10/ 10 | L15: 'R 10/ 10 | M15: 'R 10/ 10 | N15: 15/ 15 | O15: 15/ 15 | P15: 15/ 20 | Q15: 15/ 20 | S15: VPs | T15: =VLOOKUP(V11,VPTable,MATCH(T13,INDEX(VPTable,1,),1),TRUE) -> 1 | V15: =ADDRESS(MATCH(V11,INDEX(VPTable,,1),1),MATCH(T13,INDEX(VPTable,1,),1)) -> $C$3
B16: 4 | C16: 4:1 | D16: 4 | F16: 9 | G16: 2 | H16: -0.05 | J16: 5 | K16: 15/ 15 | L16: 15/ 15 | M16: 15/ 15 | N16: 10/ 15 | O16: 10/ 15 | P16: 25/ 25 R | Q16: 25/ 25 R
B17: 5 | C17: 5:1 | D17: 5 | F17: 10 | G17: 3 | H17: -0.05 | J17: 6 | K17: ' 10/ 15 | L17: ' 10/ 15 | M17: ' 10/ 15 | N17: 20/ 20 R | O17: 20/ 20 R | P17: 20/ 25 R | Q17: 20/ 25 R
B18: 6 | C18: 6:1 | D18: 6 | F18: 11 | G18: 3 | H18: -0.1 | J18: 7 | K18: ' 20/ 20 R | L18: 20/ 20 R | M18: 20/ 20 R | N18: 15/ 20 R | O18: 15/ 20 R | P18: 25/ 30 R | Q18: 25/ 30 R
B19: 7 | C19: 7:1 | D19: 7 | F19: 12 | G19: 4 | H19: -0.1 | J19: 8 | K19: ' 15/ 20 R | L19: 15/ 20 R | M19: 15/ 20 R | N19: 20/ 25 R | O19: 20/ 25 R | P19: 20/ 30 R | Q19: 20/ 30 R
B20: 8 | C20: 8:1 | D20: 8 | F20: 13 | G20: 5 | H20: -0.1 | J20: 9 | K20: ' 20/ 25 R | L20: 20/ 25 R | M20: 20/ 25 R | N20: 15/ 25 R | O20: 15/ 25 R | P20: 20/ 40 ? | Q20: 20/ 40 ?
B21: 9 | C21: 9:1 | D21: 9 | F21: 14 | G21: 6 | H21: -0.15 | J21: 10 | K21: ' 15/ 25 R | L21: 15/ 25 R | M21: 15/ 25 R | N21: 10/ 25 ? | O21: 10/ 25 ? | P21: 15/ 40 ? | Q21: 15/ 40 ?
B22: 10 | C22: 10:1 | D22: 10 | J22: 11 | K22: ' 10/ 25 ? | L22: 10/ 25 ? | M22: 10/ 25 ? | N22: 15/ 30 ? | O22: 15/ 30 ? | P22: 20/ 50 ? | Q22: 20/ 50 ?
B23: 11 | C23: 11:1 | D23: 11 | J23: 12 | K23: ' 15/ 30 ? | L23: 15/ 30 ? | M23: 15/ 30 ? | N23: 15/ 40 ? | O23: 15/ 40 ? | P23: 20/ 60 ! | Q23: 20/ 60 !
B24: 12 | C24: 12:1 | D24: 12 | J24: 13 | K24: ' 20/ 40 ? | L24: 20/ 40 ? | M24: 20/ 40 ? | N24: 20/ 50 ! | O24: 20/ 50 ! | P24: 15/ 70 ! | Q24: 15/ 70 !
B25: 13 | C25: 13:1 | D25: 13 | J25: 14 | K25: ' 20/ 50 ! | L25: 20/ 50 ! | M25: 20/ 50 ! | N25: 20/ 60 ! | O25: 20/ 60 ! | P25: 15/ 80 ! | Q25: 15/ 80 !
B26: 14 | C26: 14:1 | D26: 14 | J26: 15 | K26: ' 25/ 60 ! | L26: 25/ 60 ! | M26: 25/ 60 ! | N26: 15/ 70 ! | O26: 15/ 70 ! | P26: 10/ 90 ! | Q26: 10/ 90 !
J27: 16 | K27: 25/ 70 ! | L27: 25/ 70 ! | M27: 25/ 70 ! | N27: 15/ 80 ! | O27: 15/ 80 ! | P27: 5/ 90 ! | Q27: 5/ 90 !
J28: 17 | K28: 15/ 80 ! | L28: 15/ 80 ! | M28: 15/ 80 ! | N28: 10/100 ! | O28: 10/100 ! | P28: 5/100 ! | Q28: 5/100 !
J29: 18 | K29: 15/ 80 ! | L29: 15/ 80 ! | M29: 15/ 80 ! | N29: 10/100 ! | O29: 10/100 ! | P29: 5/100 ! | Q29: 5/100 !
J30: 19 | K30: 15/ 80 ! | L30: 15/ 80 ! | M30: 15/ 80 ! | N30: 10/100 ! | O30: 10/100 ! | P30: 5/100 ! | Q30: 5/100 !
J31: 20 | K31: 15/ 80 ! | L31: 15/ 80 ! | M31: 15/ 80 ! | N31: 10/100 ! | O31: 10/100 ! | P31: 5/100 ! | Q31: 5/100 !
J32: 21 | K32: 15/ 80 ! | L32: 15/ 80 ! | M32: 15/ 80 ! | N32: 10/100 ! | O32: 10/100 ! | P32: 5/100 ! | Q32: 5/100 !
J33: 22 | K33: 15/ 80 ! | L33: 15/ 80 ! | M33: 15/ 80 ! | N33: 10/100 ! | O33: 10/100 ! | P33: 5/100 ! | Q33: 5/100 !
J34: 23 | K34: 15/ 80 ! | L34: 15/ 80 ! | M34: 15/ 80 ! | N34: 10/100 ! | O34: 10/100 ! | P34: 5/100 ! | Q34: 5/100 !
J35: 24 | K35: 15/ 80 ! | L35: 15/ 80 ! | M35: 15/ 80 ! | N35: 10/100 ! | O35: 10/100 ! | P35: 5/100 ! | Q35: 5/100 !
J36: 25 | K36: 15/ 80 ! | L36: 15/ 80 ! | M36: 15/ 80 ! | N36: 10/100 ! | O36: 10/100 ! | P36: 5/100 ! | Q36: 5/100 !
J37: 26 | K37: 15/ 80 ! | L37: 15/ 80 ! | M37: 15/ 80 ! | N37: 10/100 ! | O37: 10/100 ! | P37: 5/100 ! | Q37: 5/100 !
J38: 27 | K38: 15/ 80 ! | L38: 15/ 80 ! | M38: 15/ 80 ! | N38: 10/100 ! | O38: 10/100 ! | P38: 5/100 ! | Q38: 5/100 !
J39: 28 | K39: 15/ 80 ! | L39: 15/ 80 ! | M39: 15/ 80 ! | N39: 10/100 ! | O39: 10/100 ! | P39: 5/100 ! | Q39: 5/100 !
J40: 29 | K40: 15/ 80 ! | L40: 15/ 80 ! | M40: 15/ 80 ! | N40: 10/100 ! | O40: 10/100 ! | P40: 5/100 ! | Q40: 5/100 !
J41: 30 | K41: 15/ 80 ! | L41: 15/ 80 ! | M41: 15/ 80 ! | N41: 10/100 ! | O41: 10/100 ! | P41: 5/100 ! | Q41: 5/100 !
